[Event "Live Chess"]
[Site "Chess.com"]
[Date "2024.06.02"]
[Round "-"]
[White "Frankie_Badacsonyi"]
[Black "KeithArkell"]
[Result "0-1"]
[WhiteElo "2409"]
[BlackElo "2446"]
[TimeControl "300"]
[EndTime "18:08:21 PDT"]
[Termination "KeithArkell won by resignation"]

1. d4 {[%clk 0:04:57.9]} 1... e6 {[%clk 0:04:59]} 2. c4 {[%clk 0:04:54.9]} 2...
Bb4+ {[%clk 0:04:58]} 3. Bd2 {[%clk 0:04:54.4]} 3... Bxd2+ {[%clk 0:04:57.3]} 4.
Qxd2 {[%clk 0:04:53.9]} 4... Nf6 {[%clk 0:04:57.1]} 5. Nf3 {[%clk 0:04:51.2]}
5... d6 {[%clk 0:04:57]} 6. g3 {[%clk 0:04:50.3]} 6... Qe7 {[%clk 0:04:56.2]} 7.
Bg2 {[%clk 0:04:49.4]} 7... e5 {[%clk 0:04:55.3]} 8. O-O {[%clk 0:04:47.6]} 8...
O-O {[%clk 0:04:53.7]} 9. Nc3 {[%clk 0:04:46.5]} 9... Re8 {[%clk 0:04:53]} 10.
Rad1 {[%clk 0:04:35]} 10... e4 {[%clk 0:04:51.9]} 11. Ne1 {[%clk 0:04:34.1]}
11... e3 {[%clk 0:04:51]} 12. fxe3 {[%clk 0:04:32.8]} 12... Qxe3+ {[%clk
0:04:49.8]} 13. Qxe3 {[%clk 0:04:30.6]} 13... Rxe3 {[%clk 0:04:49.7]} 14. Nc2
{[%clk 0:04:27.3]} 14... Re8 {[%clk 0:04:48]} 15. e4 {[%clk 0:04:23.5]} 15... c6
{[%clk 0:04:46]} 16. Rde1 {[%clk 0:04:07.1]} 16... Nbd7 {[%clk 0:04:43.1]} 17.
Ne3 {[%clk 0:04:04.7]} 17... g6 {[%clk 0:04:41.6]} 18. b3 {[%clk 0:04:01.1]}
18... Kg7 {[%clk 0:04:40.9]} 19. h3 {[%clk 0:03:58.9]} 19... a5 {[%clk
0:04:39.9]} 20. Kh2 {[%clk 0:03:57.2]} 20... c5 {[%clk 0:04:26.4]} 21. dxc5
{[%clk 0:03:50.7]} 21... Nxc5 {[%clk 0:04:24.9]} 22. Rxf6 {[%clk 0:03:43.3]}
22... Kxf6 {[%clk 0:04:24.8]} 23. Ned5+ {[%clk 0:03:42.4]} 23... Kg7 {[%clk
0:04:24.2]} 24. Nc7 {[%clk 0:03:41.1]} 24... Be6 {[%clk 0:04:22.8]} 25. Nxa8
{[%clk 0:03:36]} 25... Rxa8 {[%clk 0:04:21.7]} 26. Rd1 {[%clk 0:03:33]} 26...
Rd8 {[%clk 0:04:12.9]} 27. Nb5 {[%clk 0:03:31.8]} 27... Kf6 {[%clk 0:04:11.7]}
28. Nxd6 {[%clk 0:03:04.6]} 28... Rd7 {[%clk 0:03:57.3]} 29. Rd2 {[%clk
0:02:41.2]} 29... Ke5 {[%clk 0:03:53.3]} 30. Nxb7 {[%clk 0:02:23.7]} 30... Nxb7
{[%clk 0:03:49.8]} 31. Rf2 {[%clk 0:02:13.8]} 31... Nc5 {[%clk 0:03:48.4]} 0-1

[Event "Live Chess"]
[Site "Chess.com"]
[Date "2024.06.02"]
[Round "-"]
[White "Tushinskiy"]
[Black "Crowded_House"]
[Result "1-0"]
[WhiteElo "2264"]
[BlackElo "1707"]
[TimeControl "300"]
[EndTime "18:08:41 PDT"]
[Termination "Tushinskiy won by checkmate"]

1. d4 {[%clk 0:04:55.4]} 1... e6 {[%clk 0:04:58.5]} 2. c3 {[%clk 0:04:55.3]}
2... d5 {[%clk 0:04:57.9]} 3. Nf3 {[%clk 0:04:55.2]} 3... c5 {[%clk 0:04:55.8]}
4. Bf4 {[%clk 0:04:54.4]} 4... Nc6 {[%clk 0:04:53.3]} 5. e3 {[%clk 0:04:53.5]}
5... Bd6 {[%clk 0:04:51.6]} 6. Bg3 {[%clk 0:04:52.5]} 6... Nf6 {[%clk
0:04:48.2]} 7. Bd3 {[%clk 0:04:46.4]} 7... Qc7 {[%clk 0:04:46.3]} 8. dxc5 {[%clk
0:04:44.1]} 8... Bxg3 {[%clk 0:04:42]} 9. hxg3 {[%clk 0:04:44]} 9... h6 {[%clk
0:04:39.1]} 10. Nbd2 {[%clk 0:04:42.7]} 10... b6 {[%clk 0:04:29.1]} 11. cxb6
{[%clk 0:04:41]} 11... Qxb6 {[%clk 0:04:27.6]} 12. Qc2 {[%clk 0:04:38.8]} 12...
Ba6 {[%clk 0:04:24.9]} 13. b3 {[%clk 0:04:30.9]} 13... Bxd3 {[%clk 0:04:22.1]}
14. Qxd3 {[%clk 0:04:30.8]} 14... O-O {[%clk 0:04:21]} 15. O-O {[%clk
0:04:29.5]} 15... Qc7 {[%clk 0:04:17.4]} 16. Rac1 {[%clk 0:04:27.6]} 16... Ne5
{[%clk 0:04:16]} 17. Nxe5 {[%clk 0:04:25.9]} 17... Qxe5 {[%clk 0:04:15.6]} 18.
Nf3 {[%clk 0:04:24.1]} 18... Qe4 {[%clk 0:04:12]} 19. Qxe4 {[%clk 0:04:22.5]}
19... Nxe4 {[%clk 0:04:10.8]} 20. Rfd1 {[%clk 0:04:21.2]} 20... Rfc8 {[%clk
0:04:05.1]} 21. c4 {[%clk 0:04:18.9]} 21... dxc4 {[%clk 0:04:00.7]} 22. bxc4
{[%clk 0:04:18.8]} 22... Rc7 {[%clk 0:03:51.8]} 23. Rd4 {[%clk 0:04:16.7]} 23...
Nf6 {[%clk 0:03:49.4]} 24. Ne5 {[%clk 0:04:13.9]} 24... Rac8 {[%clk 0:03:44]}
25. Rcd1 {[%clk 0:04:10.3]} 25... Rc5 {[%clk 0:03:25.5]} 26. f4 {[%clk
0:04:07.6]} 26... Ra5 {[%clk 0:03:20.4]} 27. R1d2 {[%clk 0:04:02]} 27... Kf8
{[%clk 0:03:01.6]} 28. Kf2 {[%clk 0:03:59]} 28... Ke8 {[%clk 0:02:53.3]} 29. Kf3
{[%clk 0:03:57.4]} 29... Rac5 {[%clk 0:02:50.5]} 30. g4 {[%clk 0:03:53.1]} 30...
Ng8 {[%clk 0:02:46.1]} 31. Rd7 {[%clk 0:03:47.3]} 31... R8c7 {[%clk 0:02:38.3]}
32. Rd8+ {[%clk 0:03:43.5]} 32... Ke7 {[%clk 0:02:31.5]} 33. Rxg8 {[%clk
0:03:43.4]} 33... g6 {[%clk 0:02:29.5]} 34. Rdd8 {[%clk 0:03:37.5]} 34... h5
{[%clk 0:02:06.8]} 35. g5 {[%clk 0:03:34.9]} 35... f6 {[%clk 0:02:03.6]} 36.
Rge8# {[%clk 0:03:32.9]} 1-0

[Event "Live Chess"]
[Site "Chess.com"]
[Date "2024.06.02"]
[Round "-"]
[White "MaksymYurii"]
[Black "WelshTiger"]
[Result "0-1"]
[WhiteElo "970"]
[BlackElo "2439"]
[TimeControl "300"]
[EndTime "18:09:05 PDT"]
[Termination "WelshTiger won by checkmate"]

1. e4 {[%clk 0:04:59.2]} 1... c5 {[%clk 0:04:58.4]} 2. Nf3 {[%clk 0:04:58.2]}
2... d6 {[%clk 0:04:57.8]} 3. Bc4 {[%clk 0:04:57.3]} 3... e6 {[%clk 0:04:56.8]}
4. d4 {[%clk 0:04:53.8]} 4... cxd4 {[%clk 0:04:55.5]} 5. Nxd4 {[%clk 0:04:53]}
5... Nf6 {[%clk 0:04:54.8]} 6. O-O {[%clk 0:04:46.7]} 6... Be7 {[%clk
0:04:51.3]} 7. Bb5+ {[%clk 0:04:38.8]} 7... Nbd7 {[%clk 0:04:48.5]} 8. Re1
{[%clk 0:04:24.6]} 8... a6 {[%clk 0:04:47]} 9. Bxd7+ {[%clk 0:04:19]} 9... Bxd7
{[%clk 0:04:45.2]} 10. e5 {[%clk 0:04:18]} 10... dxe5 {[%clk 0:04:43.4]} 11.
Rxe5 {[%clk 0:04:14.5]} 11... O-O {[%clk 0:04:41.4]} 12. Bh6 {[%clk 0:04:02.5]}
12... gxh6 {[%clk 0:04:38.6]} 13. Qf3 {[%clk 0:03:55.9]} 13... Bc6 {[%clk
0:04:28.5]} 14. Nxc6 {[%clk 0:03:40.5]} 14... bxc6 {[%clk 0:04:28.4]} 15. Nc3
{[%clk 0:03:32.1]} 15... Qd4 {[%clk 0:04:24.2]} 16. Qg3+ {[%clk 0:02:54.4]}
16... Qg4 {[%clk 0:04:20.5]} 17. Qe3 {[%clk 0:02:36.3]} 17... Nd5 {[%clk
0:04:10.1]} 18. Nxd5 {[%clk 0:02:33.1]} 18... cxd5 {[%clk 0:04:10]} 19. Rd1
{[%clk 0:02:20.8]} 19... Bf6 {[%clk 0:04:08]} 20. Rd4 {[%clk 0:02:17.6]} 20...
Qg6 {[%clk 0:03:50.8]} 21. Qf3 {[%clk 0:01:44.9]} 21... Bxe5 {[%clk 0:03:43.2]}
22. Rg4 {[%clk 0:01:42.1]} 22... Rac8 {[%clk 0:03:42]} 23. Rxg6+ {[%clk
0:01:39.6]} 23... hxg6 {[%clk 0:03:40.9]} 24. h3 {[%clk 0:01:33.8]} 24... Rxc2
{[%clk 0:03:38.2]} 25. Qa3 {[%clk 0:01:25.4]} 25... Rc1# {[%clk 0:03:37.2]} 0-1

[Event "Live Chess"]
[Site "Chess.com"]
[Date "2024.06.02"]
[Round "-"]
[White "e4evr"]
[Black "booktrunk"]
[Result "1/2-1/2"]
[WhiteElo "2261"]
[BlackElo "1492"]
[TimeControl "300"]
[EndTime "18:09:51 PDT"]
[Termination "Game drawn by stalemate"]

1. e4 {[%clk 0:04:59.1]} 1... b6 {[%clk 0:04:54]} 2. Bc4 {[%clk 0:04:57.4]} 2...
Bb7 {[%clk 0:04:53.9]} 3. Qh5 {[%clk 0:04:56.7]} 3... e6 {[%clk 0:04:46.8]} 4.
d3 {[%clk 0:04:55.1]} 4... Nf6 {[%clk 0:04:45.4]} 5. Qe2 {[%clk 0:04:54.3]} 5...
h6 {[%clk 0:04:43.2]} 6. f4 {[%clk 0:04:53.1]} 6... Nc6 {[%clk 0:04:39.2]} 7.
Nf3 {[%clk 0:04:52]} 7... Na5 {[%clk 0:04:35.5]} 8. Nbd2 {[%clk 0:04:49.9]} 8...
Nxc4 {[%clk 0:04:33.8]} 9. Nxc4 {[%clk 0:04:49.8]} 9... d5 {[%clk 0:04:31.1]}
10. exd5 {[%clk 0:04:47.5]} 10... Nxd5 {[%clk 0:04:25.9]} 11. Bd2 {[%clk
0:04:46.9]} 11... Be7 {[%clk 0:04:13.7]} 12. O-O-O {[%clk 0:04:45.1]} 12... O-O
{[%clk 0:04:11.7]} 13. g4 {[%clk 0:04:43.1]} 13... Nf6 {[%clk 0:04:01.3]} 14.
Kb1 {[%clk 0:04:40.3]} 14... Bxf3 {[%clk 0:03:59.4]} 15. Qxf3 {[%clk 0:04:38.6]}
15... Qd5 {[%clk 0:03:54.9]} 16. Qxd5 {[%clk 0:04:36.9]} 16... Nxd5 {[%clk
0:03:52.6]} 17. Ne5 {[%clk 0:04:36.4]} 17... Rfd8 {[%clk 0:03:43]} 18. Nc6
{[%clk 0:04:33.5]} 18... Re8 {[%clk 0:03:40.3]} 19. Nxe7+ {[%clk 0:04:32.2]}
19... Nxe7 {[%clk 0:03:37.6]} 20. h4 {[%clk 0:04:26.8]} 20... Red8 {[%clk
0:03:36.3]} 21. h5 {[%clk 0:04:22.6]} 21... Rd4 {[%clk 0:03:34.4]} 22. Be3
{[%clk 0:04:17.2]} 22... Rd7 {[%clk 0:03:31]} 23. g5 {[%clk 0:04:15.2]} 23...
Kh7 {[%clk 0:03:27.5]} 24. Rhg1 {[%clk 0:04:10.8]} 24... Rg8 {[%clk 0:03:24.7]}
25. c3 {[%clk 0:04:05.6]} 25... Nf5 {[%clk 0:03:22.4]} 26. Bc1 {[%clk
0:04:03.5]} 26... c5 {[%clk 0:03:10.5]} 27. Kc2 {[%clk 0:04:02]} 27... f6 {[%clk
0:02:58.6]} 28. g6+ {[%clk 0:03:59.7]} 28... Kh8 {[%clk 0:02:57.3]} 29. Rde1
{[%clk 0:03:59.6]} 29... Re8 {[%clk 0:02:54.8]} 30. Re4 {[%clk 0:03:57.3]} 30...
Nd6 {[%clk 0:02:49.4]} 31. Re2 {[%clk 0:03:55.9]} 31... Nf5 {[%clk 0:02:48]} 32.
Rge1 {[%clk 0:03:54.4]} 32... Ng3 {[%clk 0:02:45]} 33. Rxe6 {[%clk 0:03:53]}
33... Rxe6 {[%clk 0:02:41.5]} 34. Rxe6 {[%clk 0:03:52.9]} 34... Rd8 {[%clk
0:02:40.4]} 35. d4 {[%clk 0:03:50.3]} 35... cxd4 {[%clk 0:02:38]} 36. cxd4
{[%clk 0:03:49.2]} 36... Nxh5 {[%clk 0:02:36.5]} 37. f5 {[%clk 0:03:48.7]} 37...
Kg8 {[%clk 0:02:31.4]} 38. d5 {[%clk 0:03:47.4]} 38... Kf8 {[%clk 0:02:29.3]}
39. Bd2 {[%clk 0:03:42.9]} 39... Ng3 {[%clk 0:02:25.6]} 40. Bb4+ {[%clk
0:03:41.5]} 40... Kg8 {[%clk 0:02:23.4]} 41. d6 {[%clk 0:03:40.9]} 41... Nxf5
{[%clk 0:02:22]} 42. d7 {[%clk 0:03:40.4]} 42... Nd4+ {[%clk 0:02:14.6]} 43. Kd3
{[%clk 0:03:36.5]} 43... Nxe6 {[%clk 0:02:12.7]} 44. Ke4 {[%clk 0:03:36.2]}
44... Rxd7 {[%clk 0:02:10.9]} 45. Bc3 {[%clk 0:03:34.9]} 45... Nc5+ {[%clk
0:02:09.1]} 46. Kf5 {[%clk 0:03:33.7]} 46... Rd5+ {[%clk 0:02:06.9]} 47. Kf4
{[%clk 0:03:32.5]} 47... Rg5 {[%clk 0:02:00]} 48. b4 {[%clk 0:03:29.8]} 48...
Ne6+ {[%clk 0:01:53.2]} 49. Ke4 {[%clk 0:03:28.8]} 49... Rxg6 {[%clk 0:01:51.9]}
50. Kf5 {[%clk 0:03:27.2]} 50... Nf8 {[%clk 0:01:47.3]} 51. a4 {[%clk 0:03:24]}
51... Rg5+ {[%clk 0:01:45.5]} 52. Kf4 {[%clk 0:03:23.4]} 52... Rg1 {[%clk
0:01:38.1]} 53. b5 {[%clk 0:03:20.6]} 53... Rc1 {[%clk 0:01:33.3]} 54. Bb2
{[%clk 0:03:17.4]} 54... Rc4+ {[%clk 0:01:31.9]} 55. Kf5 {[%clk 0:03:16.1]}
55... Rxa4 {[%clk 0:01:30.5]} 56. Bd4 {[%clk 0:03:15.6]} 56... Rxd4 {[%clk
0:01:27.5]} 1/2-1/2

[Event "Live Chess"]
[Site "Chess.com"]
[Date "2024.06.02"]
[Round "-"]
[White "CarmelJane"]
[Black "Dhaydon19"]
[Result "0-1"]
[WhiteElo "2051"]
[BlackElo "2682"]
[TimeControl "300"]
[EndTime "18:10:00 PDT"]
[Termination "Dhaydon19 won by resignation"]

1. e4 {[%clk 0:04:58.5]} 1... c6 {[%clk 0:04:58.2]} 2. d4 {[%clk 0:04:57.3]}
2... d5 {[%clk 0:04:51.5]} 3. e5 {[%clk 0:04:56.8]} 3... c5 {[%clk 0:04:50.4]}
4. dxc5 {[%clk 0:04:54.7]} 4... Nc6 {[%clk 0:04:49.4]} 5. Bb5 {[%clk 0:04:48.3]}
5... e6 {[%clk 0:04:47.6]} 6. Nf3 {[%clk 0:04:45.9]} 6... Bxc5 {[%clk
0:04:44.5]} 7. O-O {[%clk 0:04:44.4]} 7... Ne7 {[%clk 0:04:43.1]} 8. a3 {[%clk
0:04:43.5]} 8... Ng6 {[%clk 0:04:40.3]} 9. b4 {[%clk 0:04:42.8]} 9... Be7 {[%clk
0:04:32.3]} 10. Bb2 {[%clk 0:04:41.1]} 10... Bd7 {[%clk 0:04:30.9]} 11. c4
{[%clk 0:04:37.3]} 11... a6 {[%clk 0:04:27.9]} 12. cxd5 {[%clk 0:04:31.3]} 12...
axb5 {[%clk 0:04:24.3]} 13. dxc6 {[%clk 0:04:29.8]} 13... Bxc6 {[%clk
0:04:23.6]} 14. Qe2 {[%clk 0:04:21.8]} 14... O-O {[%clk 0:04:15.6]} 15. Nbd2
{[%clk 0:04:20.5]} 15... Qd5 {[%clk 0:04:08.5]} 16. Rad1 {[%clk 0:04:12.6]}
16... Rad8 {[%clk 0:04:04.8]} 17. Qe3 {[%clk 0:03:58]} 17... h6 {[%clk
0:03:58.8]} 18. Bd4 {[%clk 0:03:43.8]} 18... Bg5 {[%clk 0:03:55.7]} 19. Qc3
{[%clk 0:03:41.4]} 19... Nf4 {[%clk 0:03:54.5]} 20. Rfe1 {[%clk 0:03:31.4]}
20... Be7 {[%clk 0:03:42.4]} 21. h3 {[%clk 0:03:25.4]} 21... Rd7 {[%clk
0:03:37.8]} 22. Nf1 {[%clk 0:03:17.8]} 22... Qc4 {[%clk 0:03:33.9]} 23. Qe3
{[%clk 0:03:13.2]} 23... Bg5 {[%clk 0:03:30]} 24. N1d2 {[%clk 0:03:04.5]} 24...
Qa2 {[%clk 0:03:18.2]} 25. Nxg5 {[%clk 0:03:03.6]} 25... hxg5 {[%clk 0:03:16.4]}
26. Ra1 {[%clk 0:02:52.4]} 26... Qd5 {[%clk 0:03:12]} 27. Nf3 {[%clk 0:02:46.3]}
27... Nxh3+ {[%clk 0:03:08.3]} 28. gxh3 {[%clk 0:02:46.2]} 28... Qxf3 {[%clk
0:03:06.4]} 29. Qxf3 {[%clk 0:02:45.7]} 29... Bxf3 {[%clk 0:03:05.8]} 30. Be3
{[%clk 0:02:34.9]} 30... f6 {[%clk 0:03:02.7]} 31. Bc5 {[%clk 0:02:29.2]} 31...
Re8 {[%clk 0:03:01.2]} 32. Re3 {[%clk 0:02:26.4]} 32... Bd5 {[%clk 0:03:00]} 33.
Bd4 {[%clk 0:02:13.9]} 33... Kf7 {[%clk 0:02:57]} 34. Rae1 {[%clk 0:02:08.9]}
34... Rh8 {[%clk 0:02:53]} 35. Rg3 {[%clk 0:01:52.3]} 35... Rh5 {[%clk
0:02:50.5]} 36. exf6 {[%clk 0:01:50.4]} 36... gxf6 {[%clk 0:02:48.4]} 37. Bc5
{[%clk 0:01:42]} 37... Bc6 {[%clk 0:02:44.3]} 38. Rge3 {[%clk 0:01:38.5]} 38...
e5 {[%clk 0:02:42.6]} 39. Rg3 {[%clk 0:01:35.5]} 39... Kg6 {[%clk 0:02:41.4]}
40. Be3 {[%clk 0:01:20.8]} 40... f5 {[%clk 0:02:36.2]} 41. f4 {[%clk 0:01:04.3]}
41... Rdh7 {[%clk 0:02:14]} 42. fxe5 {[%clk 0:00:49.7]} 42... g4 {[%clk
0:02:11.3]} 43. Bf4 {[%clk 0:00:33.9]} 43... Rxh3 {[%clk 0:02:08.7]} 44. Rxh3
{[%clk 0:00:32.1]} 44... Rxh3 {[%clk 0:02:07.4]} 45. e6 {[%clk 0:00:19.2]} 45...
g3 {[%clk 0:01:59.7]} 46. Bxg3 {[%clk 0:00:14]} 46... Rxg3+ {[%clk 0:01:58]} 47.
Kf2 {[%clk 0:00:13.7]} 47... Rg4 {[%clk 0:01:56.7]} 48. e7 {[%clk 0:00:13.3]}
0-1

[Event "Live Chess"]
[Site "Chess.com"]
[Date "2024.06.02"]
[Round "-"]
[White "Thebigsqueeze"]
[Black "grillage"]
[Result "1-0"]
[WhiteElo "2278"]
[BlackElo "1856"]
[TimeControl "300"]
[EndTime "18:10:08 PDT"]
[Termination "Thebigsqueeze won on time"]

1. d4 {[%clk 0:04:54.8]} 1... e6 {[%clk 0:04:56.7]} 2. c4 {[%clk 0:04:53.7]}
2... Bb4+ {[%clk 0:04:54.4]} 3. Bd2 {[%clk 0:04:51.3]} 3... Bxd2+ {[%clk
0:04:52.9]} 4. Qxd2 {[%clk 0:04:50.6]} 4... Nf6 {[%clk 0:04:49.8]} 5. Nc3 {[%clk
0:04:49.9]} 5... d6 {[%clk 0:04:48.9]} 6. e4 {[%clk 0:04:48.9]} 6... Qe7 {[%clk
0:04:47.3]} 7. g3 {[%clk 0:04:47.9]} 7... e5 {[%clk 0:04:46.1]} 8. d5 {[%clk
0:04:46.4]} 8... a5 {[%clk 0:04:44]} 9. Bg2 {[%clk 0:04:45.5]} 9... Nbd7 {[%clk
0:04:42.8]} 10. Nf3 {[%clk 0:04:44]} 10... Nc5 {[%clk 0:04:41.5]} 11. Qc2 {[%clk
0:04:42.6]} 11... O-O {[%clk 0:04:39.9]} 12. O-O {[%clk 0:04:40.6]} 12... b6
{[%clk 0:04:32.8]} 13. b3 {[%clk 0:04:38.9]} 13... Bg4 {[%clk 0:04:30.4]} 14.
Ne1 {[%clk 0:04:36.7]} 14... Nfd7 {[%clk 0:04:16.8]} 15. f3 {[%clk 0:04:35.7]}
15... Bh5 {[%clk 0:04:14.4]} 16. a3 {[%clk 0:04:35.1]} 16... Bg6 {[%clk
0:04:00.8]} 17. g4 {[%clk 0:04:31.6]} 17... h5 {[%clk 0:03:48.9]} 18. h3 {[%clk
0:04:29.1]} 18... hxg4 {[%clk 0:03:42.2]} 19. hxg4 {[%clk 0:04:28]} 19... Na6
{[%clk 0:03:27.4]} 20. Nd3 {[%clk 0:04:22.7]} 20... Ndc5 {[%clk 0:03:21.5]} 21.
Ne1 {[%clk 0:04:20.4]} 21... Qh4 {[%clk 0:03:19.3]} 22. Rb1 {[%clk 0:04:17.4]}
22... Qg3 {[%clk 0:02:54.8]} 23. b4 {[%clk 0:04:14.7]} 23... axb4 {[%clk
0:02:50.7]} 24. axb4 {[%clk 0:04:13.6]} 24... Nd7 {[%clk 0:02:48.9]} 25. Nd3
{[%clk 0:04:13.1]} 25... f6 {[%clk 0:02:40.6]} 26. Nb5 {[%clk 0:04:10.6]} 26...
Kf7 {[%clk 0:02:36.5]} 27. Qf2 {[%clk 0:03:55.9]} 27... Qxf2+ {[%clk 0:02:31]}
28. Rxf2 {[%clk 0:03:55.4]} 28... Rh8 {[%clk 0:02:28.8]} 29. Ra2 {[%clk
0:03:53.5]} 29... Bh7 {[%clk 0:02:13.3]} 30. Rba1 {[%clk 0:03:51.7]} 30... Ndb8
{[%clk 0:02:09]} 31. c5 {[%clk 0:03:26]} 31... Ke7 {[%clk 0:01:59.8]} 32. Nxc7
{[%clk 0:03:16.4]} 32... Nxc7 {[%clk 0:01:52.2]} 33. Rxa8 {[%clk 0:03:14.9]}
33... Nxa8 {[%clk 0:01:51.3]} 34. Rxa8 {[%clk 0:03:13.4]} 34... bxc5 {[%clk
0:01:37.3]} 35. bxc5 {[%clk 0:03:10.7]} 35... dxc5 {[%clk 0:01:34.7]} 36. Nxc5
{[%clk 0:03:09.2]} 36... Rd8 {[%clk 0:01:23.7]} 37. Bf1 {[%clk 0:02:55.2]} 37...
g6 {[%clk 0:01:16.9]} 38. Bb5 {[%clk 0:02:50.3]} 38... f5 {[%clk 0:01:12.3]} 39.
Ra7+ {[%clk 0:02:44.6]} 39... Kd6 {[%clk 0:00:32.9]} 40. Ne6 {[%clk 0:02:22.8]}
40... Rh8 {[%clk 0:00:26.2]} 41. Ng5 {[%clk 0:02:17.4]} 41... Kc5 {[%clk
0:00:16.6]} 42. Be2 {[%clk 0:02:05.3]} 42... Bg8 {[%clk 0:00:15]} 43. Rg7 {[%clk
0:01:55.9]} 43... Na6 {[%clk 0:00:12.1]} 44. Rxg6 {[%clk 0:01:54]} 44... Nb4
{[%clk 0:00:10.2]} 45. gxf5 {[%clk 0:01:51.5]} 45... Kd4 {[%clk 0:00:06.4]} 46.
f6 {[%clk 0:01:45.7]} 46... Bh7 {[%clk 0:00:03.6]} 47. Nxh7 {[%clk 0:01:43.6]}
47... Rxh7 {[%clk 0:00:02.3]} 48. Rg7 {[%clk 0:01:41.6]} 48... Rh8 {[%clk
0:00:01.3]} 49. f7 {[%clk 0:01:40.5]} 49... Rf8 {[%clk 0:00:00.5]} 50. Kf2
{[%clk 0:01:39]} 1-0

[Event "Live Chess"]
[Site "Chess.com"]
[Date "2024.06.02"]
[Round "-"]
[White "RichardABates"]
[Black "lyricalschemes"]
[Result "1/2-1/2"]
[WhiteElo "2368"]
[BlackElo "2283"]
[TimeControl "300"]
[EndTime "18:11:03 PDT"]
[Termination "Game drawn by agreement"]

1. d4 {[%clk 0:04:56.4]} 1... Nf6 {[%clk 0:04:57.5]} 2. Nf3 {[%clk 0:04:54.6]}
2... e6 {[%clk 0:04:56.5]} 3. c4 {[%clk 0:04:52.8]} 3... Bb4+ {[%clk 0:04:55.1]}
4. Bd2 {[%clk 0:04:51.2]} 4... Qe7 {[%clk 0:04:54.3]} 5. g3 {[%clk 0:04:49.7]}
5... O-O {[%clk 0:04:52.9]} 6. Bg2 {[%clk 0:04:48.3]} 6... d5 {[%clk 0:04:52]}
7. O-O {[%clk 0:04:43.1]} 7... Bxd2 {[%clk 0:04:50.1]} 8. Qxd2 {[%clk
0:04:40.7]} 8... b6 {[%clk 0:04:49.4]} 9. Nc3 {[%clk 0:04:36.5]} 9... Bb7 {[%clk
0:04:47.6]} 10. Ne5 {[%clk 0:04:33.7]} 10... Nbd7 {[%clk 0:04:45.1]} 11. Nxd7
{[%clk 0:04:29.3]} 11... Qxd7 {[%clk 0:04:38.5]} 12. cxd5 {[%clk 0:04:26.8]}
12... Nxd5 {[%clk 0:04:31.2]} 13. e4 {[%clk 0:04:24.7]} 13... Ne7 {[%clk
0:04:21]} 14. Rfd1 {[%clk 0:04:18.1]} 14... Rad8 {[%clk 0:04:17.9]} 15. Qe3
{[%clk 0:04:08.6]} 15... Ng6 {[%clk 0:04:12.9]} 16. Rac1 {[%clk 0:03:56.2]}
16... a6 {[%clk 0:03:46.1]} 17. h4 {[%clk 0:03:54]} 17... f5 {[%clk 0:03:37.7]}
18. exf5 {[%clk 0:03:48.4]} 18... Bxg2 {[%clk 0:03:36.2]} 19. fxg6 {[%clk
0:03:42.6]} 19... Bf3 {[%clk 0:03:32.6]} 20. gxh7+ {[%clk 0:03:40.9]} 20... Kxh7
{[%clk 0:03:29.3]} 21. Re1 {[%clk 0:03:37.4]} 21... e5 {[%clk 0:03:25.4]} 22.
Ne4 {[%clk 0:03:29.2]} 22... exd4 {[%clk 0:03:10.8]} 23. Ng5+ {[%clk 0:03:27.6]}
23... Kg8 {[%clk 0:03:09.2]} 24. Qd3 {[%clk 0:03:25.8]} 24... Qf5 {[%clk
0:03:01.3]} 25. Qxf3 {[%clk 0:03:01.5]} 25... Qxf3 {[%clk 0:02:56.7]} 26. Nxf3
{[%clk 0:02:59.7]} 26... Rxf3 {[%clk 0:02:56.4]} 27. Rxc7 {[%clk 0:02:57.5]}
27... d3 {[%clk 0:02:55.6]} 28. Rd1 {[%clk 0:02:52.6]} 28... d2 {[%clk
0:02:52.9]} 29. Rc3 {[%clk 0:02:29.3]} 29... Rf5 {[%clk 0:02:44.7]} 30. Kf1
{[%clk 0:02:26.7]} 30... Rfd5 {[%clk 0:02:33.1]} 31. Ke2 {[%clk 0:02:24.3]}
31... Re8+ {[%clk 0:02:30.3]} 32. Re3 {[%clk 0:02:22.7]} 32... Red8 {[%clk
0:02:26.8]} 33. f4 {[%clk 0:02:10.8]} 33... Kf7 {[%clk 0:02:25]} 34. g4 {[%clk
0:02:09.3]} 34... Rd4 {[%clk 0:02:21.7]} 35. Kf3 {[%clk 0:02:06]} 35... Rc8
{[%clk 0:02:12.5]} 36. Re2 {[%clk 0:02:01.5]} 36... Rcd8 {[%clk 0:02:07.8]} 37.
h5 {[%clk 0:01:58.1]} 37... Rd3+ {[%clk 0:02:06.8]} 38. Kf2 {[%clk 0:01:56]}
38... R8d4 {[%clk 0:02:03.8]} 39. Re3 {[%clk 0:01:46.2]} 39... Rxf4+ {[%clk
0:01:51.6]} 40. Ke2 {[%clk 0:01:36.3]} 40... Rxe3+ {[%clk 0:01:42]} 41. Kxe3
{[%clk 0:01:34.9]} 41... Rxg4 {[%clk 0:01:41.4]} 42. Rxd2 {[%clk 0:01:32.2]}
42... Rh4 {[%clk 0:01:33.5]} 43. Rd6 {[%clk 0:01:28.9]} 43... Rb4 {[%clk
0:01:24.1]} 44. b3 {[%clk 0:01:26.4]} 44... Rb5 {[%clk 0:01:22.7]} 45. h6 {[%clk
0:01:22.9]} 45... gxh6 {[%clk 0:01:21.6]} 46. Rxh6 {[%clk 0:01:21.3]} 46... Ke7
{[%clk 0:01:21.3]} 47. Kd4 {[%clk 0:01:19.9]} 47... Kd7 {[%clk 0:01:20.2]} 48.
Kc4 {[%clk 0:01:18.6]} 48... Kc7 {[%clk 0:01:17.9]} 49. a4 {[%clk 0:01:13.6]}
49... Rc5+ {[%clk 0:01:17]} 50. Kd4 {[%clk 0:01:11.2]} 50... Rc6 {[%clk
0:01:11.4]} 51. Rxc6+ {[%clk 0:01:06.3]} 51... Kxc6 {[%clk 0:01:10.6]} 52. Kc4
{[%clk 0:01:04]} 52... b5+ {[%clk 0:01:08]} 53. axb5+ {[%clk 0:00:52]} 53...
axb5+ {[%clk 0:01:07.5]} 54. Kd4 {[%clk 0:00:50.8]} 54... Kd6 {[%clk 0:01:05.8]}
55. b4 {[%clk 0:00:49.2]} 55... Kc6 {[%clk 0:00:58]} 56. Ke5 {[%clk 0:00:47.7]}
56... Kc7 {[%clk 0:00:55.8]} 57. Kd5 {[%clk 0:00:46]} 57... Kd7 {[%clk
0:00:55.2]} 58. Kc5 {[%clk 0:00:44.7]} 58... Kc7 {[%clk 0:00:54.9]} 59. Kxb5
{[%clk 0:00:43.3]} 59... Kb7 {[%clk 0:00:54.5]} 60. Kc5 {[%clk 0:00:42.5]} 60...
Kc7 {[%clk 0:00:54]} 61. b5 {[%clk 0:00:41.5]} 61... Kb7 {[%clk 0:00:53.5]} 62.
b6 {[%clk 0:00:40.4]} 62... Kb8 {[%clk 0:00:52.6]} 63. Kb5 {[%clk 0:00:39.4]}
63... Kb7 {[%clk 0:00:50]} 1/2-1/2